bitfinex-derivatives/quotes_BNBF0:USTF0_20250220
["timestamp","ask_amount","ask_price","bid_price","bid_amount"]
[1740086851000,2.95986329,654.09,653.57,0.30601159]
[1740086851205,2.95986329,654.08,653.57,0.30601159]
[1740086851406,2.95986329,654.07,653.57,0.30601159]
[1740086851608,2.95986329,654.06,653.57,0.30601159]
[1740086851909,2.95986329,654.05,653.57,0.30601159]
[1740086852106,2.95986329,654.04,653.57,0.30601159]
[1740086852306,2.95986329,654.03,653.57,0.30601159]
[1740086852506,2.95986329,654.02,653.57,0.30601159]
[1740086852704,2.20043245,654.04,653.57,0.30601159]
[1740086852705,2.95986329,654.01,653.57,0.30601159]
[1740086852902,2.95986329,654.0,653.57,0.30601159]
[1740086853209,2.95986329,653.99,653.57,0.30601159]
[1740086853409,2.95986329,653.98,653.57,0.30601159]
[1740086853606,2.95986329,653.97,653.57,0.30601159]
[1740086853805,2.95986329,653.96,653.57,0.30601159]
[1740086854002,2.20043245,654.04,653.57,0.30601159]
[1740086854003,2.95986329,653.95,653.57,0.30601159]
[1740086854207,2.95986329,653.94,653.57,0.30601159]
[1740086854406,2.95986329,653.93,653.57,0.30601159]
[1740086854608,2.95986329,653.92,653.57,0.30601159]
[1740086854805,2.95986329,653.91,653.57,0.30601159]
[1740086855007,2.95986329,653.9,653.57,0.30601159]
[1740086855212,2.95986329,653.89,653.57,0.30601159]
[1740086855409,5.16029574,653.88,653.57,0.30601159]
[1740086855709,2.95986329,653.87,653.57,0.30601159]
[1740086855909,2.95986329,653.86,653.57,0.30601159]
[1740086856211,2.95986329,653.85,653.57,0.30601159]
[1740086856508,2.95986329,653.84,653.57,0.30601159]
[1740086856711,2.95986329,653.83,653.57,0.30601159]
[1740086856908,2.95986329,653.82,653.57,0.30601159]
[1740086857105,2.20043245,653.83,653.57,0.30601159]
[1740086857304,2.96835125,653.82,653.57,0.30601159]
[1740086857505,2.20043245,653.83,653.57,0.30601159]
[1740086857711,2.96841479,653.82,653.57,0.30601159]
[1740086857910,2.20043245,653.83,653.57,0.30601159]
[1740086858103,2.96851346,653.82,653.57,0.30601159]
[1740086858307,2.20043245,653.82,653.57,0.30601159]
[1740086860109,5.5,654.24,653.57,0.30601159]
[1740086860304,2.96886042,654.23,653.57,0.30601159]
[1740086860512,2.96886042,654.22,653.57,0.30601159]
[1740086860714,2.96886042,654.21,653.57,0.30601159]
[1740086860914,2.96886042,654.2,653.57,0.30601159]
[1740086861109,2.96886042,654.19,653.57,0.30601159]
[1740086861310,2.96886042,654.18,653.57,0.30601159]
[1740086861512,2.96886042,654.17,653.57,0.30601159]
[1740086861716,2.96886042,654.16,653.57,0.30601159]
[1740086861912,2.96886042,654.15,653.57,0.30601159]
[1740086862116,2.96886042,654.14,653.57,0.30601159]
[1740086862313,2.96886042,654.13,653.57,0.30601159]
[1740086862513,2.96886042,654.12,653.57,0.30601159]
[1740086862717,2.96886042,654.11,653.57,0.30601159]
[1740086862915,2.96886042,654.1,653.57,0.30601159]
[1740086863114,2.96886042,654.09,653.57,0.30601159]
[1740086863314,2.96886042,654.08,653.57,0.30601159]
[1740086863511,2.96886042,654.07,653.57,0.30601159]
[1740086863718,2.96886042,654.06,653.57,0.30601159]
[1740086863919,2.96886042,654.05,653.57,0.30601159]
[1740086864113,2.96886042,654.04,653.57,0.30601159]
[1740086864318,2.96886042,654.03,653.57,0.30601159]
[1740086864521,2.96886042,654.02,653.57,0.30601159]
[1740086864718,2.96886042,654.01,653.57,0.30601159]
[1740086864923,2.96886042,654.0,653.57,0.30601159]
[1740086865123,2.96886042,653.99,653.57,0.30601159]
[1740086865319,2.96886042,653.98,653.57,0.30601159]
[1740086865518,2.96886042,653.97,653.57,0.30601159]
[1740086865717,2.96886042,653.96,653.57,0.30601159]
[1740086865921,2.96886042,653.95,653.57,0.30601159]
[1740086866122,2.96886042,653.94,653.57,0.30601159]
[1740086866322,2.96886042,653.93,653.57,0.30601159]
[1740086866522,2.96886042,653.92,653.57,0.30601159]
[1740086866720,2.96886042,653.91,653.57,0.30601159]
[1740086867024,2.96886042,653.9,653.57,0.30601159]
[1740086867226,2.20686209,653.92,653.57,0.30601159]
[1740086867227,2.96886042,653.89,653.57,0.30601159]
[1740086867426,2.96886042,653.88,653.57,0.30601159]
[1740086867621,2.96886042,653.87,653.57,0.30601159]
[1740086867821,2.96886042,653.86,653.57,0.30601159]
[1740086868022,2.96886042,653.85,653.57,0.30601159]
[1740086868226,2.96886042,653.84,653.57,0.30601159]
[1740086868427,2.20686209,653.92,653.57,0.30601159]
[1740086868627,2.96863187,653.91,653.57,0.30601159]
[1740086868826,2.96863187,653.9,653.57,0.30601159]
[1740086869026,2.96863187,653.89,653.57,0.30601159]
[1740086869227,2.96863187,653.88,653.57,0.30601159]
[1740086869428,2.96863187,653.87,653.57,0.30601159]
[1740086869628,2.96863187,653.86,653.6,1.13862989]
[1740086869827,2.96863187,653.85,653.6,1.13862989]
[1740086870028,2.96863187,653.84,653.6,1.13862989]
[1740086870329,2.20686209,653.9,653.6,1.13862989]
[1740086870523,2.96880661,653.89,653.6,1.13862989]
[1740086870728,2.96880661,653.88,653.6,1.13862989]
[1740086870929,2.96880661,653.87,653.6,1.13862989]
[1740086871129,2.96880661,653.86,653.6,1.13862989]
[1740086871330,2.96880661,653.85,653.6,1.13862989]
[1740086871525,2.96880661,653.84,653.6,1.13862989]
[1740086871721,2.20686209,653.88,653.6,1.13862989]
[1740086871930,2.96856317,653.87,653.6,1.13862989]
[1740086872130,2.96856317,653.86,653.6,1.13862989]
[1740086872332,2.20686209,653.88,653.57,0.30601159]
[1740086872333,2.96856317,653.85,653.57,0.30601159]
[1740086872526,2.20686209,653.88,653.57,0.30601159]
[1740086872730,2.96846559,653.87,653.57,0.30601159]
[1740086872930,2.96846559,653.86,653.57,0.30601159]
[1740086873130,2.96846559,653.85,653.57,0.30601159]
[1740086873429,2.96846591,653.84,653.57,0.30601159]
[1740086873630,2.20686209,653.87,653.57,0.30601159]
[1740086874429,8.414,654.24,653.57,0.30601159]
[1740086874629,2.96870164,654.23,653.57,0.30601159]
[1740086874930,2.96870164,654.22,653.57,0.30601159]
[1740086875127,2.96870164,654.21,653.57,0.30601159]
[1740086875426,2.96870164,654.2,653.57,0.30601159]
[1740086875627,2.96870164,654.19,653.57,0.30601159]
[1740086875839,2.96870164,654.18,653.57,0.30601159]
[1740086876027,2.96870164,654.17,653.57,0.30601159]
[1740086876331,2.96870164,654.16,653.57,0.30601159]
[1740086876531,2.96870164,654.15,653.57,0.30601159]
[1740086876731,2.96870164,654.14,653.57,0.30601159]
[1740086877032,2.96870164,654.13,653.57,0.30601159]
[1740086877332,2.96870164,654.12,653.57,0.30601159]
[1740086877532,2.20685492,654.15,653.57,0.30601159]
[1740086877533,2.96870164,654.11,653.57,0.30601159]
[1740086877732,2.96870164,654.1,653.57,0.30601159]
[1740086877934,2.96870164,654.09,653.57,0.30601159]
[1740086878232,2.96870164,654.08,653.57,0.30601159]
[1740086878432,2.96870164,654.07,653.57,0.30601159]
[1740086878732,2.96870164,654.06,653.57,0.30601159]
[1740086878934,2.96870164,654.05,653.57,0.30601159]
[1740086879232,2.96870164,654.04,653.57,0.30601159]
[1740086879431,2.96870164,654.03,653.57,0.30601159]
[1740086879631,2.96870164,654.02,653.57,0.30601159]
[1740086879932,2.96870164,654.01,653.57,0.30601159]
[1740086880130,2.96870164,654.0,653.57,0.30601159]
[1740086880327,2.96870164,653.99,653.57,0.30601159]
[1740086880526,2.96870164,653.98,653.57,0.30601159]
[1740086880730,2.96870164,653.97,653.57,0.30601159]
[1740086880929,2.96870164,653.96,653.57,0.30601159]
[1740086881127,2.96870164,653.95,653.57,0.30601159]
[1740086881333,2.96870164,653.94,653.57,0.30601159]
[1740086881533,2.96870164,653.93,653.57,0.30601159]
[1740086881832,2.96870164,653.92,653.57,0.30601159]
[1740086882027,2.96870164,653.91,653.57,0.30601159]
[1740086882232,2.96870164,653.9,653.57,0.30601159]
[1740086882533,2.96870164,653.89,653.57,0.30601159]
[1740086882734,2.96870164,653.88,653.57,0.30601159]
[1740086882930,2.96870164,653.87,653.57,0.30601159]
[1740086883136,2.96870164,653.86,653.57,0.30601159]
[1740086883334,2.96870164,653.85,653.57,0.30601159]
[1740086883536,2.20685492,653.9,653.57,0.30601159]
[1740086883537,2.96870164,653.84,653.57,0.30601159]
[1740086883735,10.538,654.24,653.57,0.30601159]
[1740086883932,2.9680445,654.23,653.57,0.30601159]
[1740086884140,2.9680445,654.22,653.57,0.30601159]
[1740086884336,2.9680445,654.21,653.57,0.30601159]
[1740086884532,2.9680445,654.2,653.57,0.30601159]
[1740086884733,2.9680445,654.19,653.57,0.30601159]
[1740086884937,2.9680445,654.18,653.57,0.30601159]
[1740086885137,2.9680445,654.17,653.57,0.30601159]
[1740086885334,2.9680445,654.16,653.57,0.30601159]
[1740086885538,2.9680445,654.15,653.57,0.30601159]
[1740086885739,2.9680445,654.14,653.57,0.30601159]
[1740086885937,2.9680445,654.13,653.57,0.30601159]
[1740086886140,2.9680445,654.12,653.57,0.30601159]
[1740086886439,2.9680445,654.11,653.57,0.30601159]
[1740086886633,2.9680445,654.1,653.57,0.30601159]
[1740086886837,2.9680445,654.09,653.6,1.13862989]
[1740086887037,2.9680445,654.08,653.6,1.13862989]
[1740086887237,2.9680445,654.07,653.6,1.13862989]
[1740086887434,2.9680445,654.06,653.6,1.13862989]
[1740086887740,2.9680445,654.05,653.6,1.13862989]
[1740086887934,2.9680445,654.04,653.6,1.13862989]
[1740086888139,2.9680445,654.03,653.6,1.13862989]
[1740086888334,2.9680445,654.02,653.6,1.13862989]
[1740086888640,2.9680445,654.01,653.6,1.13862989]
[1740086888831,2.9680445,654.0,653.6,1.13862989]
[1740086889034,2.9680445,653.99,653.6,1.13862989]
[1740086889239,2.9680445,653.98,653.61,1.13862989]
[1740086889440,2.9680445,653.97,653.61,1.13862989]
[1740086889641,2.9680445,653.96,653.61,1.13862989]
[1740086889836,2.9680445,653.95,653.61,1.13862989]
[1740086890041,2.9680445,653.94,653.61,1.13862989]
[1740086890335,2.9680445,653.93,653.61,1.13862989]
[1740086890542,2.9680445,653.92,653.61,1.13862989]
[1740086890744,2.9680445,653.91,653.61,1.13862989]
[1740086890945,2.9680445,653.9,653.61,1.13862989]
[1740086891142,2.9680445,653.89,653.61,1.13862989]
[1740086891339,2.9680445,653.88,653.57,0.30601159]
[1740086891539,2.9680445,653.87,653.57,0.30601159]
[1740086891739,2.9680445,653.86,653.57,0.30601159]
[1740086891947,2.9680445,653.85,653.57,0.30601159]
[1740086892140,2.9680445,653.84,653.57,0.30601159]
[1740086892345,2.9680445,653.83,653.57,0.30601159]
[1740086892545,2.9680445,653.82,653.57,0.30601159]
[1740086892748,2.9680445,653.81,653.57,0.30601159]
[1740086892948,2.20643168,653.84,653.57,0.30601159]
[1740086893150,2.97061937,653.83,653.57,0.30601159]
[1740086893351,2.97061937,653.82,653.57,0.30601159]
[1740086893650,2.20643168,653.84,653.57,0.30601159]
[1740086893949,2.97086146,653.83,653.57,0.30601159]
[1740086894145,2.97086146,653.82,653.57,0.30601159]
[1740086894349,2.97086146,653.81,653.57,0.30601159]
[1740086894546,2.20643168,653.82,653.57,0.30601159]
[1740086894844,2.97029198,653.81,653.57,0.30601159]
[1740086895051,2.20643168,653.82,653.57,0.30601159]
[1740086895652,2.97015187,653.81,653.57,0.30601159]
[1740086895849,2.20643168,653.82,653.57,0.30601159]
[1740086896054,2.97014458,653.81,653.57,0.30601159]
[1740086896353,2.96995453,653.8,653.57,0.30601159]
[1740086896550,8.52,654.24,653.57,0.30601159]
[1740086896750,2.96916527,654.23,653.57,0.30601159]
[1740086896950,8.52,654.24,653.57,0.30601159]
[1740086896951,2.96916527,654.22,653.57,0.30601159]
[1740086897251,2.96916527,654.21,653.57,0.30601159]
[1740086897453,2.96916527,654.2,653.57,0.30601159]
[1740086897752,2.96916527,654.19,653.57,0.30601159]
[1740086897954,2.96916527,654.18,653.57,0.30601159]
[1740086898152,2.96916527,654.17,653.57,0.30601159]
[1740086898346,2.96916527,654.16,653.57,0.30601159]
[1740086898548,2.96916527,654.15,653.57,0.30601159]
[1740086898752,2.96916527,654.14,653.57,0.30601159]
[1740086898949,2.96916527,654.13,653.57,0.30601159]
[1740086899154,2.20739013,654.19,653.57,0.30601159]
[1740086899155,2.96916527,654.12,653.57,0.30601159]
[1740086899352,2.96916527,654.11,653.57,0.30601159]
[1740086899558,2.96916527,654.1,653.57,0.30601159]
[1740086899755,2.96916527,654.09,653.57,0.30601159]
[1740086899957,2.96916527,654.08,653.57,0.30601159]
[1740086900155,2.96916527,654.07,653.57,0.30601159]
[1740086900357,2.96916527,654.06,653.57,0.30601159]
[1740086900558,2.96916527,654.05,653.57,0.30601159]
[1740086900759,2.96916527,654.04,653.57,0.30601159]
[1740086901058,2.96916527,654.03,653.57,0.30601159]
[1740086901258,2.96916527,654.02,653.57,0.30601159]
[1740086901458,2.96916527,654.01,653.57,0.30601159]
[1740086901660,5.1765554,654.0,653.57,0.30601159]
[1740086901860,2.96916527,653.99,653.57,0.30601159]
[1740086902056,2.96916527,653.98,653.57,0.30601159]
[1740086902255,2.96916527,653.97,653.57,0.30601159]
[1740086902456,2.96916527,653.96,653.57,0.30601159]
[1740086902760,2.96916527,653.95,653.57,0.30601159]
[1740086902961,2.96916527,653.94,653.57,0.30601159]
[1740086903162,2.96916527,653.93,653.57,0.30601159]
[1740086903361,2.96916527,653.92,653.57,0.30601159]
[1740086903656,2.96916527,653.91,653.57,0.30601159]
[1740086903861,2.96916527,653.9,653.57,0.30601159]
[1740086904064,2.96916527,653.89,653.57,0.30601159]
[1740086904261,2.96916527,653.88,653.57,0.30601159]
[1740086904458,2.96916527,653.87,653.57,0.30601159]
[1740086904659,2.96916527,653.86,653.57,0.30601159]
[1740086904960,2.96916527,653.85,653.57,0.30601159]
[1740086905156,2.20739013,653.92,653.57,0.30601159]
[1740086905157,2.96916527,653.84,653.57,0.30601159]
[1740086905360,2.96916527,653.83,653.57,0.30601159]
[1740086905556,2.96916527,653.82,653.57,0.30601159]
[1740086905758,2.96938792,653.81,653.57,0.30601159]
[1740086905961,2.20739013,653.83,653.57,0.30601159]
[1740086906262,2.96932235,653.82,653.57,0.30601159]
[1740086906457,2.96932235,653.81,653.57,0.30601159]
[1740086906658,2.20739013,653.83,653.57,0.30601159]
[1740086906857,2.96927584,653.82,653.57,0.30601159]
[1740086907062,2.96927584,653.81,653.57,0.30601159]
[1740086907258,2.96927584,653.8,653.57,0.30601159]
[1740086907463,2.20739013,653.81,653.57,0.30601159]
[1740086907664,2.96916189,653.8,653.57,0.30601159]
[1740086907862,2.20739013,653.81,653.57,0.30601159]
[1740086908062,2.96914607,653.8,653.57,0.30601159]
[1740086908261,2.96914607,653.79,653.57,0.30601159]
[1740086908459,2.20739013,653.81,653.57,0.30601159]
[1740086908759,2.96894834,653.8,653.57,0.30601159]
[1740086909064,2.96894834,653.79,653.57,0.30601159]
[1740086909265,2.20739013,653.79,653.57,0.30601159]
[1740086911363,11.889,654.24,653.57,0.30601159]
[1740086911568,2.96902952,654.23,653.57,0.30601159]
[1740086911867,2.96902952,654.22,653.57,0.30601159]
[1740086912062,2.96902952,654.21,653.57,0.30601159]
[1740086912263,2.96902952,654.2,653.57,0.30601159]
[1740086912467,2.96902952,654.19,653.57,0.30601159]
[1740086912659,2.96902952,654.18,653.57,0.30601159]
[1740086912865,2.96902952,654.17,653.57,0.30601159]
[1740086913066,2.96902952,654.16,653.57,0.30601159]
[1740086913270,2.96902952,654.15,653.57,0.30601159]
[1740086913469,2.96902952,654.14,653.57,0.30601159]
[1740086913668,2.96902952,654.13,653.57,0.30601159]
[1740086913865,2.96902952,654.12,653.57,0.30601159]
[1740086914070,11.889,654.24,653.57,0.30601159]
[1740086914071,2.96902952,654.11,653.57,0.30601159]
[1740086914272,2.96902952,654.1,653.57,0.30601159]
[1740086914570,2.96902952,654.09,653.57,0.30601159]
[1740086914770,2.96902952,654.08,653.57,0.30601159]
[1740086914971,2.96902952,654.07,653.57,0.30601159]
[1740086915270,2.96902952,654.06,653.57,0.30601159]
[1740086915471,2.96902952,654.05,653.57,0.30601159]
[1740086915666,2.96902952,654.04,653.57,0.30601159]
[1740086915870,2.96902952,654.03,653.57,0.30601159]
[1740086916072,2.96902952,654.02,653.57,0.30601159]
[1740086916270,2.96902952,654.01,653.57,0.30601159]
[1740086916468,2.96902952,654.0,653.57,0.30601159]
[1740086916668,2.96902952,653.99,653.57,0.30601159]
[1740086916866,2.96902952,653.98,653.57,0.30601159]
[1740086917171,2.96902952,653.97,653.57,0.30601159]
[1740086917372,2.96902952,653.96,653.57,0.30601159]
[1740086917572,2.96902952,653.95,653.57,0.30601159]
[1740086917871,2.2072819,653.97,653.57,0.30601159]
[1740086917872,2.96902952,653.94,653.57,0.30601159]
[1740086918072,2.96902952,653.93,653.57,0.30601159]
[1740086918370,2.96902952,653.92,653.57,0.30601159]
[1740086918567,2.96902952,653.91,653.57,0.30601159]
[1740086918772,2.96902952,653.9,653.57,0.30601159]
[1740086918966,2.96902952,653.89,653.57,0.30601159]
[1740086919165,2.96902952,653.88,653.57,0.30601159]
[1740086919371,11.889,654.24,653.57,0.30601159]
[1740086919372,2.96902952,653.87,653.57,0.30601159]
[1740086919566,2.96902952,653.86,653.57,0.30601159]
[1740086919768,2.96902952,653.85,653.57,0.30601159]
[1740086919970,2.96902952,653.84,653.57,0.30601159]
[1740086920170,2.96902952,653.83,653.57,0.30601159]
[1740086920366,2.96902952,653.82,653.57,0.30601159]
[1740086920569,2.96902952,653.81,653.57,0.30601159]
[1740086920765,2.96902952,653.8,653.57,0.30601159]
[1740086920967,2.96902952,653.79,653.57,0.30601159]
[1740086921273,2.2072819,653.81,653.57,0.30601159]
[1740086921473,2.96797831,653.8,653.57,0.30601159]
[1740086921672,2.96797831,653.79,653.57,0.30601159]
[1740086921873,2.2072819,653.81,653.57,0.30601159]
[1740086922074,2.96852759,653.8,653.57,0.30601159]
[1740086922373,11.889,654.24,653.57,0.30601159]
[1740086922574,2.96886282,654.23,653.57,0.30601159]
[1740086922773,2.96886282,654.22,653.57,0.30601159]
[1740086922970,2.96886282,654.21,653.57,0.30601159]
[1740086923171,2.96886282,654.2,653.57,0.30601159]
[1740086923372,2.96886282,654.19,653.57,0.30601159]
[1740086923571,2.96886282,654.18,653.57,0.30601159]
[1740086923774,2.96886282,654.17,653.57,0.30601159]
[1740086924072,2.96886282,654.16,653.57,0.30601159]
[1740086924274,2.96886282,654.15,653.57,0.30601159]
[1740086924470,2.96886282,654.14,653.57,0.30601159]
[1740086924670,2.96886282,654.13,653.57,0.30601159]
[1740086924871,2.96886282,654.12,653.57,0.30601159]
[1740086925069,2.96886282,654.11,653.57,0.30601159]
[1740086925274,2.96886282,654.1,653.57,0.30601159]
[1740086925573,2.96886282,654.09,653.57,0.30601159]
[1740086925774,2.96886282,654.08,653.57,0.30601159]
[1740086925971,2.96886282,654.07,653.57,0.30601159]
[1740086926277,2.96886282,654.06,653.57,0.30601159]
[1740086926476,2.96886282,654.05,653.57,0.30601159]
[1740086926774,2.96886282,654.04,653.57,0.30601159]
[1740086926974,2.96886282,654.03,653.57,0.30601159]
[1740086927167,2.96886282,654.02,653.62,1.13862989]
[1740086927373,2.96886282,654.01,653.62,1.13862989]
[1740086927574,2.96886282,654.0,653.62,1.13862989]
[1740086927777,2.96886282,653.99,653.62,1.13862989]
[1740086927973,2.96886282,653.98,653.62,1.13862989]
[1740086928178,2.96886282,653.97,653.62,1.13862989]
[1740086928378,2.96886282,653.96,653.62,1.13862989]
[1740086928678,2.96886282,653.95,653.62,1.13862989]
[1740086928878,2.96886282,653.94,653.62,1.13862989]
[1740086929078,2.96886282,653.93,653.62,1.13862989]
[1740086929279,2.96886282,653.92,653.62,1.13862989]
[1740086929480,2.96886282,653.91,653.62,1.13862989]
[1740086929679,2.96886282,653.9,653.62,1.13862989]
[1740086929880,2.96886282,653.89,653.62,1.13862989]
[1740086930180,2.20702071,653.94,653.64,1.13862989]
[1740086930181,2.96886282,653.88,653.64,1.13862989]
[1740086930379,2.96886282,653.87,653.64,1.13862989]
[1740086930582,2.96886282,653.86,653.64,1.13862989]
[1740086930880,2.96886282,653.85,653.64,1.13862989]
[1740086931081,2.96886282,653.84,653.64,1.13862989]
[1740086931282,2.96886282,653.83,653.64,1.13862989]
[1740086931477,2.96886282,653.82,653.64,1.13862989]
[1740086931675,2.96886282,653.81,653.64,1.13862989]
[1740086931879,2.96886282,653.8,653.64,1.13862989]
[1740086932175,2.20702071,653.85,653.64,1.13862989]
[1740086932374,2.96780683,653.84,653.64,1.13862989]
[1740086932580,2.96780683,653.83,653.64,1.13862989]
[1740086932882,2.96780683,653.82,653.64,1.13862989]
[1740086933075,2.96780683,653.81,653.64,1.13862989]
[1740086933274,2.96780683,653.8,653.64,1.13862989]
[1740086933480,2.20702071,653.82,653.64,1.13862989]
[1740086933680,2.96783309,653.81,653.64,1.13862989]
[1740086933877,2.96783309,653.8,653.64,1.13862989]
[1740086934078,2.20702071,653.82,653.64,1.13862989]
[1740086934282,2.967663,653.81,653.64,1.13862989]
[1740086934481,2.967663,653.8,653.64,1.13862989]
[1740086934681,2.20702071,653.82,653.64,1.13862989]
[1740086934983,2.96734664,653.81,653.64,1.13862989]
[1740086935178,2.20702071,653.82,653.64,1.13862989]
[1740086935478,2.96736662,653.81,653.64,1.13862989]
[1740086935683,2.96736662,653.81,653.57,0.30601159]
[1740086935684,4.375,654.31,653.57,0.30601159]
[1740086935985,2.9672736,654.3,653.57,0.30601159]
[1740086936179,2.9672736,654.29,653.57,0.30601159]
[1740086936386,2.9672736,654.28,653.57,0.30601159]
[1740086936578,2.9672736,654.27,653.57,0.30601159]
[1740086936781,2.9672736,654.26,653.57,0.30601159]
[1740086936978,2.9672736,654.25,653.57,0.30601159]
[1740086937179,2.9672736,654.24,653.57,0.30601159]
[1740086937383,2.9672736,654.23,653.57,0.30601159]
[1740086937586,2.9672736,654.22,653.57,0.30601159]
[1740086937778,2.9672736,654.21,653.57,0.30601159]
[1740086937982,5.17308069,654.2,653.57,0.30601159]
[1740086938179,2.9672736,654.19,653.57,0.30601159]
[1740086938485,2.9672736,654.18,653.57,0.30601159]
[1740086938787,2.9672736,654.17,653.57,0.30601159]
[1740086938980,2.9672736,654.16,653.57,0.30601159]
[1740086939185,2.9672736,654.15,653.57,0.30601159]
[1740086939383,2.9672736,654.14,653.57,0.30601159]
[1740086939583,2.9672736,654.13,653.57,0.30601159]
[1740086939881,2.20580709,654.2,653.57,0.30601159]
[1740086939882,2.9672736,654.12,653.57,0.30601159]
[1740086940084,2.9672736,654.11,653.57,0.30601159]
[1740086940279,2.9672736,654.1,653.57,0.30601159]
[1740086940478,2.9672736,654.09,653.57,0.30601159]
[1740086940683,2.9672736,654.08,653.57,0.30601159]
[1740086940885,2.9672736,654.07,653.57,0.30601159]
[1740086941087,2.9672736,654.06,653.57,0.30601159]
[1740086941389,2.9672736,654.05,653.57,0.30601159]
[1740086941687,2.9672736,654.04,653.57,0.30601159]
[1740086941884,2.9672736,654.03,653.57,0.30601159]
[1740086942083,2.9672736,654.02,653.57,0.30601159]
[1740086942281,2.9672736,654.01,653.57,0.30601159]
[1740086942492,2.9672736,654.0,653.57,0.30601159]
[1740086942686,2.9672736,653.99,653.57,0.30601159]
[1740086942988,2.9672736,653.98,653.57,0.30601159]
[1740086943188,2.9672736,653.97,653.57,0.30601159]
[1740086943390,2.9672736,653.96,653.57,0.30601159]
[1740086943585,2.9672736,653.95,653.57,0.30601159]
[1740086943785,2.9672736,653.94,653.57,0.30601159]
[1740086944090,2.9672736,653.93,653.57,0.30601159]
[1740086944290,2.20580709,653.95,653.66,1.13862989]
[1740086944485,2.96503857,653.94,653.66,1.13862989]
[1740086944683,2.96503857,653.93,653.66,1.13862989]
[1740086944884,2.20580709,653.95,653.66,1.13862989]
[1740086945088,2.96518883,653.94,653.66,1.13862989]
[1740086945289,2.96518883,653.93,653.66,1.13862989]
[1740086945491,2.20580709,653.95,653.66,1.13862989]
[1740086945791,2.96492141,653.94,653.66,1.13862989]
[1740086946089,2.96492141,653.93,653.66,1.13862989]
[1740086946285,6.07,654.26,653.66,1.13862989]
[1740086946491,2.96464424,654.25,653.64,1.13862989]
[1740086946689,2.96464424,654.24,653.64,1.13862989]
[1740086946891,5.1683396,654.23,653.64,1.13862989]
[1740086947085,2.96464424,654.22,653.64,1.13862989]
[1740086947284,2.96464424,654.21,653.64,1.13862989]
[1740086947486,2.96464424,654.2,653.64,1.13862989]
[1740086947692,2.96464424,654.19,653.64,1.13862989]
[1740086947892,2.96464424,654.18,653.64,1.13862989]
[1740086948085,2.96464424,654.17,653.64,1.13862989]
[1740086948287,2.96464424,654.16,653.64,1.13862989]
[1740086948489,2.96464424,654.15,653.64,1.13862989]
[1740086948690,2.96464424,654.14,653.6,1.13862989]
[1740086948888,2.96464424,654.13,653.6,1.13862989]
[1740086949091,2.96464424,654.12,653.6,1.13862989]
[1740086949294,2.96464424,654.11,653.6,1.13862989]
[1740086949594,2.96464424,654.1,653.61,0.30599287]
[1740086949794,2.96464424,654.09,653.61,0.30599287]
[1740086949995,2.96464424,654.08,653.61,0.30599287]
[1740086950195,2.96464424,654.07,653.61,0.30599287]
[1740086950387,2.20369536,654.15,653.61,0.30599287]
[1740086950388,2.96464424,654.06,653.61,0.30599287]
[1740086950592,2.96464424,654.05,653.61,0.30599287]
[1740086950790,2.96464424,654.04,653.61,0.30599287]
[1740086951096,2.96464424,654.03,653.61,0.30599287]
[1740086951289,2.96464424,654.02,653.61,0.30599287]
[1740086951489,2.96464424,654.01,653.61,0.30599287]
[1740086951692,2.20369536,654.06,653.61,0.30599287]
[1740086951693,2.96464424,654.0,653.61,0.30599287]
[1740086951893,2.96464424,653.99,653.61,0.30599287]
[1740086952097,2.96464424,653.98,653.61,0.30599287]
[1740086952295,2.20369536,653.99,653.61,0.30599287]
[1740086952496,2.9621738,653.98,653.61,0.30599287]
[1740086952791,2.20369536,653.99,653.61,0.30599287]
[1740086953298,2.96234529,653.98,653.61,0.30599287]
[1740086953496,2.96191179,653.97,653.61,0.30599287]
[1740086953697,2.96191179,653.96,653.61,0.30599287]
[1740086953899,2.20369536,653.99,653.61,0.30599287]
[1740086954098,2.96186975,653.98,653.61,0.30599287]
[1740086954398,4.694,654.26,653.61,0.30599287]
[1740086954599,2.96161707,654.25,653.61,0.30599287]
[1740086954797,2.96161707,654.24,653.61,0.30599287]
[1740086954997,5.16308253,654.23,653.61,0.30599287]
[1740086955194,2.96161707,654.22,653.61,0.30599287]
[1740086955399,2.96161707,654.21,653.61,0.30599287]
[1740086955699,2.96161707,654.2,653.61,0.30599287]
[1740086955997,2.96161707,654.19,653.61,0.30599287]
[1740086956197,2.96161707,654.18,653.61,0.30599287]
[1740086956401,2.96161707,654.17,653.61,0.30599287]
[1740086956598,2.96161707,654.16,653.61,0.30599287]
[1740086956799,2.96161707,654.15,653.61,0.30599287]
[1740086956993,2.96161707,654.14,653.61,0.30599287]
[1740086957193,2.96161707,654.13,653.61,0.30599287]
[1740086957394,2.96161707,654.12,653.61,0.30599287]
[1740086957594,2.96161707,654.11,653.61,0.30599287]
[1740086957799,2.96161707,654.1,653.61,0.30599287]
[1740086957997,2.96161707,654.09,653.61,0.30599287]
[1740086958303,2.96161707,654.08,653.61,0.30599287]
[1740086958601,2.96161707,654.07,653.61,0.30599287]
[1740086958797,5.16308253,654.06,653.61,0.30599287]
[1740086958997,2.96161707,654.05,653.61,0.30599287]
[1740086959198,2.96161707,654.04,653.61,0.30599287]
[1740086959404,2.20146546,654.06,653.61,0.30599287]
[1740086959714,2.95887911,654.05,653.61,0.30599287]